[Event "Turkish Championship 2019"]
[Site "Antalya-Kemer"]
[Date "2019.11.24"]
[Round "2.5"]
[White "Gokerkan, Cem Kaan"]
[Black "Cansun, Can Alp"]
[Result "1-0"]
[ECO "B48"]
[WhiteElo "2452"]
[BlackElo "2203"]
[Annotator "ChessBase"]
[PlyCount "115"]
[EventDate "2019.11.23"]
[EventType "tourn"]
[EventCountry "TUR"]
[SourceTitle "playchess.com"]
[Source "ChessBase"]
[SourceQuality "1"]
[TimeControl "40/5400+30:1800+30"]

1. e4 {[%emt 0:00:30]} c5 {[%emt 0:00:30]} 2. Nf3 {[%emt 0:00:30]} e6 {[%emt 0:00:30]} 3. d4 {[%emt 0:00:30]} cxd4 {[%emt 0:00:30]} 4. Nxd4 {[%emt 0:00:30]} Nc6 {[%emt 0:00:00]} 5. Nc3 {[%emt 0:00:00]} Qc7 {[%emt 0:00:00]} 6. Be3 {[%emt 0:00:00]} a6 {[%emt 0:00:00]} 7. Qd2 {[%emt 0:00:00]} Nf6 {[%emt 0:00:00]} 8. f4 {[%emt 0:00:00]} Bb4 {[%emt 0:03:30]} 9. Bd3 {[%emt 0:00:00]} d5 {[%emt 0:08:30]} 10. e5 {[%emt 0:03:00]} Ng4 {[%emt 0:00:30]} 11. Bg1 {[%emt 0:02:30]} Na5 {[%emt 0:04:30]} 12. h3 {[%emt 0:16:30]} Nh6 {[%emt 0:05:30]} 13. a3 {[%emt 0:01:30]} Bxc3 {[%emt 0:00:30]} 14. Qxc3 {[%emt 0:00:30]} Qxc3+ {[%emt 0:00:30]} 15. bxc3 {[%emt 0:00:30]} Bd7 {[%emt 0:01:30]} 16. Nb3 {[%emt 0:03:30]} Nc4 {[%emt 0:03:30]} 17. Bxc4 {[%emt 0:10:30]} dxc4 {[%emt 0:00:30]} 18. Na5 {[%emt 0:00:00]} Nf5 {[%emt 0:10:30]} 19. g4 {[%emt 0:12:00]} Ne7 {[%emt 0:13:30]} 20. Nxc4 {[%emt 0:14:30]} O-O {[%emt 0:03:30]} 21. Nb6 {[%emt 0:06:30]} Bc6 {[%emt 0:02:30]} 22. Rh2 {[%emt 0:00:00]} Rad8 {[%emt 0:01:30]} 23. Bc5 {[%emt 0:05:00]} Rfe8 {[%emt 0:00:00]} 24. Bxe7 {[%emt 0:03:37]} Rxe7 {[%emt 0:01:00]} 25. Rd1 {[%emt 0:00:23]} Rxd1+ {[%emt 0:00:30]} 26. Kxd1 {[%emt 0:00:30]} h5 {[%emt 0:00:30]} 27. Kd2 {[%emt 0:02:46]} Bf3 {[%emt 0:01:30]} 28. g5 {[%emt 0:00:37]} Rc7 {[%emt 0:01:30]} 29. Kd3 {[%emt 0:02:16]} h4 {[%emt 0:02:30]} 30. Kd4 {[%emt 0:01:33]} Kh7 {[%emt 0:06:30]} 31. c4 {[%emt 0:01:49]} Kg6 {[%emt 0:00:30]} 32. Rf2 {[%emt 0:00:09]} Bc6 {[%emt 0:02:30]} 33. c5 {[%emt 0:01:16]} Bb5 {[%emt 0:05:30]} 34. a4 {[%emt 0:08:15]} Bc6 {[%emt 0:00:30]} 35. Rd2 {[%emt 0:01:27]} f6 {[%emt 0:02:30]} 36. gxf6 {[%emt 0:01:20]} gxf6 {[%emt 0:00:00]} 37. a5 {[%emt 0:00:14]} Bb5 {[%emt 0:09:30]} 38. f5+ {[%emt 0:01:16]} exf5 {[%emt 0:00:43]} 39. e6 {[%emt 0:01:25]} Re7 {[%emt 0:05:38]} 40. Nd5 {[%emt 0:00:00]} Rxe6 {[%emt 0:02:48]} 41. Nf4+ {[%emt 0:02:07]} Kf7 {[%emt 0:00:21]} 42. Nxe6 {[%emt 0:00:30]} Kxe6 {[%emt 0:00:30]} 43. Rf2 {[%emt 0:00:30]} Bc6 {[%emt 0:01:30]} 44. Rf4 {[%emt 0:00:30]} Bg2 {[%emt 0:00:00]} 45. Rxh4 {[%emt 0:00:30]} f4 {[%emt 0:00:00]} 46. Rxf4 {[%emt 0:10:30]} Bxh3 {[%emt 0:00:30]} 47. c6 {[%emt 0:01:30]} bxc6 {[%emt 0:00:00]} 48. Kc5 {[%emt 0:00:30]} Ke5 {[%emt 0:04:00]} 49. Rf2 {[%emt 0:00:30]} f5 {[%emt 0:01:30]} 50. Kb6 {[%emt 0:00:30]} f4 {[%emt 0:00:30]} 51. Kxa6 {[%emt 0:00:30]} Ke4 {[%emt 0:00:30]} 52. Kb6 {[%emt 0:03:15]} Ke3 {[%emt 0:00:30]} 53. Rh2 {[%emt 0:00:07]} Bf5 {[%emt 0:00:30]} 54. a6 {[%emt 0:00:33]} c5 {[%emt 0:00:30]} 55. a7 {[%emt 0:00:30]} Be4 {[%emt 0:00:00]} 56. Rh8 {[%emt 0:00:02]} Kd4 {[%emt 0:00:00]} 57. Rf8 {[%emt 0:01:05]} f3 {[%emt 0:01:30]} 58. Rf4 {[%emt 0:00:04]} 1-0

[Event "Turkish Championship 2019"]
[Site "Antalya-Kemer"]
[Date "2019.11.25"]
[Round "3.4"]
[White "Koksal, Ege"]
[Black "Ozen, Deniz"]
[Result "1-0"]
[ECO "D17"]
[WhiteElo "2375"]
[BlackElo "2422"]
[Annotator "ChessBase"]
[PlyCount "73"]
[EventDate "2019.11.23"]
[EventType "tourn"]
[EventCountry "TUR"]
[SourceTitle "playchess.com"]
[Source "ChessBase"]
[SourceQuality "1"]
[TimeControl "40/5400+30:1800+30"]

1. d4 {[%emt 0:00:30]} d5 {[%emt 0:00:30]} 2. c4 {[%emt 0:00:30]} c6 {[%emt 0:00:00]} 3. Nc3 {[%emt 0:00:00]} Nf6 {[%emt 0:00:00]} 4. Nf3 {[%emt 0:00:00]} dxc4 {[%emt 0:00:30]} 5. a4 {[%emt 0:00:00]} Bf5 {[%emt 0:00:00]} 6. Ne5 {[%emt 0:01:00]} e6 {[%emt 0:00:00]} 7. f3 {[%emt 0:00:30]} Bb4 {[%emt 0:00:30]} 8. Nxc4 {[%emt 0:00:00]} O-O {[%emt 0:00:30]} 9. Bg5 {[%emt 0:00:00]} h6 {[%emt 0:04:30]} 10. Bh4 {[%emt 0:00:00]} Be7 {[%emt 0:01:30]} 11. e4 {[%emt 0:07:00]} Bh7 {[%emt 0:00:30]} 12. Be2 {[%emt 0:05:30]} Nbd7 {[%emt 0:05:30]} 13. Bf2 {[%emt 0:05:30]} Nb6 {[%emt 0:10:30]} 14. Ne5 {[%emt 0:04:30]} Nbd7 {[%emt 0:01:30]} 15. Nd3 {[%emt 0:04:30]} Rc8 {[%emt 0:10:30]} 16. O-O {[%emt 0:05:30]} a5 {[%emt 0:21:30]} 17. Qb3 {[%emt 0:01:30]} b6 {[%emt 0:07:30]} 18. Rac1 {[%emt 0:01:30]} Re8 {[%emt 0:09:30]} 19. Rfd1 {[%emt 0:01:30]} Qc7 {[%emt 0:02:30]} 20. Nb1 {[%emt 0:16:30]} Qa7 {[%emt 0:01:30]} 21. Na3 {[%emt 0:00:30]} Bf8 {[%emt 0:14:05]} 22. Nc4 {[%emt 0:00:30]} Be7 {[%emt 0:01:24]} 23. Nce5 {[%emt 0:02:30]} Nxe5 {[%emt 0:01:07]} 24. Nxe5 {[%emt 0:00:30]} Qb7 {[%emt 0:02:02]} 25. Nc4 {[%emt 0:00:30]} Bb4 {[%emt 0:00:42]} 26. Be1 {[%emt 0:01:30]} Bxe1 {[%emt 0:00:18]} 27. Rxe1 {[%emt 0:00:00]} Red8 {[%emt 0:01:52]} 28. Nxa5 {[%emt 0:07:00]} Qd7 {[%emt 0:00:22]} 29. Qxb6 {[%emt 0:00:30]} Rb8 {[%emt 0:00:41]} 30. Qc5 {[%emt 0:00:30]} Bxe4 {[%emt 0:00:12]} 31. fxe4 {[%emt 0:00:30]} Nxe4 {[%emt 0:00:15]} 32. Qe5 {[%emt 0:00:30]} Nd2 {[%emt 0:02:44]} 33. Nxc6 {[%emt 0:01:30]} Rxb2 {[%emt 0:00:01]} 34. Nxd8 {[%emt 0:00:30]} Qxd8 {[%emt 0:00:02]} 35. a5 {[%emt 0:01:30]} Ra2 {[%emt 0:00:11]} 36. Ra1 {[%emt 0:01:30]} Qh4 {[%emt 0:00:02]} 37. Qe3 {[%emt 0:01:30]} 1-0

[Event "Turkish Championship 2019"]
[Site "Antalya-Kemer"]
[Date "2019.11.29"]
[Round "7.1"]
[White "Kamer, Kayra"]
[Black "Sevgi, Volkan"]
[Result "1/2-1/2"]
[ECO "B14"]
[WhiteElo "2329"]
[BlackElo "2325"]
[Annotator "NA"]
[PlyCount "66"]
[EventDate "2019.11.23"]
[EventType "tourn"]
[EventCountry "TUR"]
[SourceTitle "playchess.com"]
[Source "ChessBase"]
[SourceQuality "1"]
[TimeControl "40/5400+30:1800+30"]

1. e4 {[%emt 0:00:30]} c6 {[%emt 0:00:30]} 2. d4 {[%emt 0:00:30]} d5 {[%emt 0:00:00]} 3. exd5 {[%emt 0:00:30]} cxd5 {[%emt 0:00:00]} 4. c4 {[%emt 0:00:00]} Nf6 {[%emt 0:00:30]} 5. Nc3 {[%emt 0:00:00]} e6 {[%emt 0:00:30]} 6. Nf3 {[%emt 0:03:30]} Bb4 {[%emt 0:00:30]} 7. Bf4 {[%emt 0:11:30] B14: Caro-Kann: Panov-Botvinnik Attack with 5...e6 and 5...g6} (7. cxd5 Nxd5 8. Qc2 Nc6 9. a3 Ba5 10. Bd3 h6 11. O-O O-O 12. Rd1 Bd7 13. Ne4 Bb6 14. Bc4 Rc8 15. Nd6 Rc7 16. Nb5 Ncb4 17. Qb3 Bxb5 18. Bxb5 {0-1 (56) Gelfand,B (2719)-Dominguez Perez,L (2752) Hengshui 2019}) 7... O-O {[%emt 0:05:30]} 8. Rc1 {[%emt 0:02:30]} Nc6 {[%emt 0:05:30]} 9. Bd3 {[%emt 0:02:30]} dxc4 {[%emt 0:01:30]} 10. Bxc4 {[%emt 0:00:00]} Nd5 {[%emt 0:06:30]} 11. Bg3 $146 {[%emt 0:01:00]} ({Predecessor:} 11. Be3 Re8 12. O-O Be7 13. Ne4 Qb6 14. Qc2 h6 15. a3 Bd7 {1-0 (44) Flach,E (2164)-Kammerer,P (1930) Frankfurt 2013}) 11... Bd7 {[%emt 0:06:30]} 12. O-O {[%emt 0:00:30]} Nxc3 {[%emt 0:01:30]} 13. bxc3 {[%emt 0:00:30]} Ba3 {[%emt 0:00:00]} 14. Rb1 {[%emt 0:00:30]} b6 {[%emt 0:05:00]} 15. Qe2 {[%emt 0:03:30]} Be7 {[%emt 0:12:30]} 16. Rfd1 {[%emt 0:06:30]} Bf6 {[%emt 0:03:30]} 17. d5 {[%emt 0:08:30]} exd5 {[%emt 0:00:30]} 18. Rxd5 {[%emt 0:00:00]} Qe8 {[%emt 0:02:30]} 19. Qd3 {[%emt 0:14:00]} Be6 {[%emt 0:07:30]} 20. Re1 {[%emt 0:00:30]} Na5 {[%emt 0:00:30]} 21. Rh5 {[%emt 0:07:30]} g6 {[%emt 0:00:30]} 22. Bxe6 {[%emt 0:00:30]} fxe6 {[%emt 0:03:30]} 23. Rh3 {[%emt 0:03:30]} Rd8 {[%emt 0:01:30]} 24. Qe3 {[%emt 0:03:30]} Nc4 {[%emt 0:03:30]} 25. Qh6 {[%emt 0:00:30]} Qf7 {[%emt 0:01:30]} 26. Bh4 {[%emt 0:04:30]} Rd7 {[%emt 0:06:30]} 27. Qf4 $11 {[%emt 0:11:20]} e5 {[%emt 0:10:29]} 28. Qg4 {[%emt 0:02:10]} Bxh4 {[%emt 0:03:56]} 29. Qxh4 {[%emt 0:02:58]} Qf4 {[%emt 0:04:37]} 30. Ng5 {[%emt 0:00:31]} Qxh4 {[%emt 0:01:55]} 31. Rxh4 {[%emt 0:00:02]} b5 {[%emt 0:00:29]} 32. a4 {[%emt 0:01:25]} a6 {[%emt 0:00:01]} 33. axb5 {[%emt 0:03:31]} axb5 {[%emt 0:00:01]} 1/2-1/2

[Event "Turkish Championship 2019"]
[Site "Antalya-Kemer"]
[Date "2019.11.29"]
[Round "7.2"]
[White "Koksal, Ege"]
[Black "Cansun, Can Alp"]
[Result "1-0"]
[ECO "E10"]
[WhiteElo "2375"]
[BlackElo "2203"]
[Annotator "ChessBase"]
[PlyCount "63"]
[EventDate "2019.11.23"]
[EventType "tourn"]
[EventCountry "TUR"]
[SourceTitle "playchess.com"]
[Source "ChessBase"]
[SourceQuality "1"]
[TimeControl "40/5400+30:1800+30"]

1. d4 {[%emt 0:00:30]} Nf6 {[%emt 0:00:30]} 2. c4 {[%emt 0:00:30]} e6 {[%emt 0:00:30]} 3. Nf3 {[%emt 0:00:30]} c5 {[%emt 0:00:00]} 4. d5 {[%emt 0:00:00]} b5 {[%emt 0:00:00]} 5. dxe6 {[%emt 0:00:00]} fxe6 {[%emt 0:00:00]} 6. cxb5 {[%emt 0:00:00]} d5 {[%emt 0:00:00]} 7. g3 {[%emt 0:01:00]} Bd6 {[%emt 0:00:30]} 8. Bg2 {[%emt 0:00:30]} O-O {[%emt 0:00:30]} 9. O-O {[%emt 0:00:00]} Bb7 {[%emt 0:00:00]} 10. Nbd2 {[%emt 0:00:00]} h6 {[%emt 0:17:00]} 11. b3 {[%emt 0:03:30]} a6 {[%emt 0:01:30]} 12. bxa6 {[%emt 0:00:30]} Rxa6 {[%emt 0:00:30]} 13. Bb2 {[%emt 0:00:30]} Nbd7 {[%emt 0:00:30]} 14. Qc2 {[%emt 0:02:30]} Qa8 {[%emt 0:03:30]} 15. Nh4 {[%emt 0:02:30]} Re8 {[%emt 0:09:30]} 16. Rfe1 {[%emt 0:02:30]} Ne5 {[%emt 0:07:30]} 17. e4 {[%emt 0:07:30]} d4 {[%emt 0:27:30]} 18. f4 {[%emt 0:05:30]} Neg4 {[%emt 0:00:30]} 19. e5 {[%emt 0:13:30]} c4 {[%emt 0:07:30]} 20. Bxd4 {[%emt 0:02:30]} cxb3 {[%emt 0:00:30]} 21. Nxb3 {[%emt 0:01:30]} Rc8 {[%emt 0:01:30]} 22. Qe2 {[%emt 0:00:30]} Bxg2 {[%emt 0:02:25]} 23. Nxg2 {[%emt 0:01:30]} Rac6 {[%emt 0:02:15]} 24. exf6 {[%emt 0:00:30]} Rc2 {[%emt 0:02:05]} 25. Qxe6+ {[%emt 0:00:30]} Kh7 {[%emt 0:00:00]} 26. Qe4+ {[%emt 0:00:00]} Qxe4 {[%emt 0:00:34]} 27. Rxe4 {[%emt 0:00:00]} Rxg2+ {[%emt 0:00:00]} 28. Kxg2 {[%emt 0:00:30]} Rc2+ {[%emt 0:00:00]} 29. Kf3 {[%emt 0:01:30]} h5 {[%emt 0:01:43]} 30. Re2 {[%emt 0:00:30]} Nxh2+ {[%emt 0:00:17]} 31. Ke3 {[%emt 0:00:30]} Ng4+ {[%emt 0:00:38]} 32. Ke4 {[%emt 0:00:00]} 1-0

[Event "Turkish Championship 2019"]
[Site "Antalya-Kemer"]
[Date "2019.11.29"]
[Round "7.3"]
[White "Yuksel, Atilla Koksal"]
[Black "Gokerkan, Cem Kaan"]
[Result "0-1"]
[ECO "B14"]
[WhiteElo "2250"]
[BlackElo "2452"]
[Annotator "ChessBase"]
[PlyCount "56"]
[EventDate "2019.11.23"]
[EventType "tourn"]
[EventCountry "TUR"]
[SourceTitle "playchess.com"]
[Source "ChessBase"]
[SourceQuality "1"]
[TimeControl "40/5400+30:1800+30"]

1. e4 {[%emt 0:01:30]} c6 {[%emt 0:00:30]} 2. d4 {[%emt 0:00:30]} d5 {[%emt 0:00:00]} 3. exd5 {[%emt 0:00:30]} cxd5 {[%emt 0:00:00]} 4. c4 {[%emt 0:00:30]} Nf6 {[%emt 0:00:00]} 5. Nc3 {[%emt 0:00:30]} e6 {[%emt 0:00:00]} 6. Bg5 {[%emt 0:00:30]} Be7 {[%emt 0:00:30]} 7. c5 {[%emt 0:00:30]} O-O {[%emt 0:00:30]} 8. Nf3 {[%emt 0:01:30]} b6 {[%emt 0:01:30]} 9. b4 {[%emt 0:02:30]} Ne4 {[%emt 0:01:30]} 10. Bxe7 {[%emt 0:02:30]} Qxe7 {[%emt 0:00:00]} 11. Rc1 {[%emt 0:01:30]} a5 {[%emt 0:02:00]} 12. a3 {[%emt 0:00:30]} axb4 {[%emt 0:00:30]} 13. axb4 {[%emt 0:00:00]} Nc6 {[%emt 0:00:30]} 14. Qb3 {[%emt 0:17:00]} Ng5 {[%emt 0:26:30]} 15. Rd1 {[%emt 0:29:30]} bxc5 {[%emt 0:02:30]} 16. dxc5 {[%emt 0:01:30]} Nxf3+ {[%emt 0:01:30]} 17. gxf3 {[%emt 0:00:30]} Qh4 {[%emt 0:05:30]} 18. b5 {[%emt 0:02:30]} Nd4 {[%emt 0:00:30]} 19. Rxd4 {[%emt 0:00:30]} Qxd4 {[%emt 0:00:30]} 20. c6 {[%emt 0:00:00]} Ra1+ {[%emt 0:00:30]} 21. Nd1 {[%emt 0:00:00]} e5 {[%emt 0:04:30]} 22. Be2 {[%emt 0:06:30]} Bh3 {[%emt 0:06:30]} 23. f4 {[%emt 0:00:30]} Bg2 {[%emt 0:00:30]} 24. Rg1 {[%emt 0:00:30]} Be4 {[%emt 0:01:30]} 25. Rg3 {[%emt 0:01:30]} exf4 {[%emt 0:03:30]} 26. Qc3 {[%emt 0:03:30]} Rxd1+ {[%emt 0:05:30]} 27. Bxd1 {[%emt 0:00:30]} fxg3 {[%emt 0:00:00]} 28. Qxd4 {[%emt 0:00:30]} gxh2 {[%emt 0:00:00]} 0-1

[Event "Turkish Championship 2019"]
[Site "Antalya-Kemer"]
[Date "2019.11.30"]
[Round "8.1"]
[White "Yilmazyerli, Mert"]
[Black "Ozen, Deniz"]
[Result "1/2-1/2"]
[ECO "D38"]
[WhiteElo "2396"]
[BlackElo "2422"]
[Annotator "ChessBase"]
[PlyCount "36"]
[EventDate "2019.11.23"]
[EventType "tourn"]
[EventCountry "TUR"]
[SourceTitle "playchess.com"]
[Source "ChessBase"]
[SourceQuality "1"]
[TimeControl "40/5400+30:1800+30"]

1. c4 {[%emt 0:00:30]} e6 {[%emt 0:00:30]} 2. Nc3 {[%emt 0:00:30]} d5 {[%emt 0:00:00]} 3. d4 {[%emt 0:00:00]} Nf6 {[%emt 0:00:00]} 4. Nf3 {[%emt 0:00:00]} Bb4 {[%emt 0:00:30]} 5. Bg5 {[%emt 0:00:30]} h6 {[%emt 0:00:30]} 6. Bxf6 {[%emt 0:01:30]} Qxf6 {[%emt 0:00:30]} 7. e3 {[%emt 0:00:30]} O-O {[%emt 0:02:30]} 8. Rc1 {[%emt 0:00:30]} dxc4 {[%emt 0:00:30]} 9. Bxc4 {[%emt 0:00:30]} c5 {[%emt 0:00:30]} 10. O-O {[%emt 0:00:30]} cxd4 {[%emt 0:00:30]} 11. Nxd4 {[%emt 0:00:00]} Bd7 {[%emt 0:01:30]} 12. Qb3 {[%emt 0:01:00]} Nc6 {[%emt 0:01:30]} 13. Nxc6 {[%emt 0:00:30]} Bxc3 {[%emt 0:00:00]} 14. Rxc3 {[%emt 0:00:00]} Bxc6 {[%emt 0:00:00]} 15. Bb5 {[%emt 0:00:00]} Bd5 {[%emt 0:00:30]} 16. Bc4 {[%emt 0:00:30]} Bc6 {[%emt 0:00:30]} 17. Bb5 {[%emt 0:00:00]} Bd5 {[%emt 0:00:00]} 18. Bc4 {[%emt 0:00:00]} Bc6 {[%emt 0:00:00]} 1/2-1/2

[Event "Turkish Championship 2019"]
[Site "Antalya-Kemer"]
[Date "2019.11.30"]
[Round "8.2"]
[White "Gokerkan, Cem Kaan"]
[Black "Sanal, Vahap"]
[Result "0-1"]
[ECO "C55"]
[WhiteElo "2452"]
[BlackElo "2545"]
[Annotator "ChessBase"]
[PlyCount "126"]
[EventDate "2019.11.23"]
[EventType "tourn"]
[EventCountry "TUR"]
[SourceTitle "playchess.com"]
[Source "ChessBase"]
[SourceQuality "1"]
[TimeControl "40/5400+30:1800+30"]

1. e4 {[%emt 0:00:30]} e5 {[%emt 0:00:30]} 2. Nf3 {[%emt 0:00:00]} Nc6 {[%emt 0:00:30]} 3. Bc4 {[%emt 0:00:00]} Nf6 {[%emt 0:00:30]} 4. d3 {[%emt 0:00:30]} h6 {[%emt 0:00:00]} 5. Nc3 {[%emt 0:12:30]} d6 {[%emt 0:00:00]} 6. a4 {[%emt 0:03:30]} g5 {[%emt 0:01:30]} 7. Be3 {[%emt 0:06:30]} Bg7 {[%emt 0:01:30]} 8. Qd2 {[%emt 0:09:30]} Be6 {[%emt 0:04:30]} 9. O-O-O {[%emt 0:09:30]} d5 {[%emt 0:04:30]} 10. exd5 {[%emt 0:02:30]} Nxd5 {[%emt 0:00:30]} 11. Rhe1 {[%emt 0:08:30]} O-O {[%emt 0:03:30]} 12. Bxd5 {[%emt 0:02:30]} Bxd5 {[%emt 0:00:30]} 13. h4 {[%emt 0:00:00]} f6 {[%emt 0:05:30]} 14. hxg5 {[%emt 0:00:00]} fxg5 {[%emt 0:03:30]} 15. Nxd5 {[%emt 0:10:30]} Qxd5 {[%emt 0:00:30]} 16. c4 {[%emt 0:00:00]} Qd6 {[%emt 0:07:30]} 17. Qc2 {[%emt 0:07:00]} Nb4 {[%emt 0:04:30]} 18. Qb3 {[%emt 0:00:30]} c5 {[%emt 0:00:30]} 19. Re2 {[%emt 0:05:30]} Rad8 {[%emt 0:01:30]} 20. Red2 {[%emt 0:04:26]} Nc6 {[%emt 0:09:30]} 21. Ng1 {[%emt 0:04:16]} Na5 {[%emt 0:01:30]} 22. Qa3 {[%emt 0:00:51]} Qb6 {[%emt 0:10:30]} 23. Kc2 {[%emt 0:00:34]} e4 {[%emt 0:01:30]} 24. Bxc5 {[%emt 0:10:18]} exd3+ {[%emt 0:01:30]} 25. Rxd3 {[%emt 0:00:01]} Rxd3 {[%emt 0:01:30]} 26. Rxd3 {[%emt 0:00:37]} Rxf2+ {[%emt 0:00:30]} 27. Bxf2 {[%emt 0:00:24]} Qxf2+ {[%emt 0:01:30]} 28. Kb1 {[%emt 0:00:01]} Qxg1+ {[%emt 0:01:30]} 29. Ka2 {[%emt 0:00:00]} Qb6 {[%emt 0:07:30]} 30. c5 {[%emt 0:02:08]} Qe6+ {[%emt 0:01:30]} 31. Kb1 {[%emt 0:00:04]} Qe4 {[%emt 0:02:30]} 32. Qa2+ {[%emt 0:01:28]} Nc4 {[%emt 0:00:30]} 33. Qb3 {[%emt 0:00:00]} Kh7 {[%emt 0:04:26]} 34. Ka2 {[%emt 0:00:01]} Nxb2 35. Rd7 {[%emt 0:00:05]} Nxa4 {[%emt 0:04:32]} 36. Rd8 {[%emt 0:01:00]} Nc3+ {[%emt 0:12:12]} 37. Ka3 {[%emt 0:00:31]} Nb1+ {[%emt 0:00:30]} 38. Ka2 {[%emt 0:00:30]} Nc3+ {[%emt 0:00:00]} 39. Ka3 {[%emt 0:00:00]} Qe7 {[%emt 0:01:40]} 40. Qg8+ {[%emt 0:02:50]} Kg6 {[%emt 0:00:00]} 41. Rd6+ {[%emt 0:04:55]} Kh5 {[%emt 0:01:10]} 42. Qc4 {[%emt 0:03:30]} Qe3 {[%emt 0:04:30]} 43. Kb4 {[%emt 0:13:10]} Ne4 {[%emt 0:01:30]} 44. Rd1 {[%emt 0:04:06]} Bc3+ {[%emt 0:05:30]} 45. Kb5 {[%emt 0:00:43]} a6+ {[%emt 0:12:25]} 46. Kb6 {[%emt 0:00:04]} Nxc5 {[%emt 0:02:11]} 47. Rh1+ {[%emt 0:04:06]} Kg6 {[%emt 0:00:01]} 48. Rh3 {[%emt 0:00:32]} Qe4 {[%emt 0:04:10]} 49. Qg8+ {[%emt 0:02:37]} Bg7 {[%emt 0:00:32]} 50. Rf3 {[%emt 0:00:13]} Nd7+ {[%emt 0:00:00]} 51. Ka7 {[%emt 0:00:00]} Nf6 {[%emt 0:00:30]} 52. Qc8 {[%emt 0:00:04]} h5 {[%emt 0:00:39]} 53. Rb3 {[%emt 0:01:02]} b5 {[%emt 0:00:28]} 54. Qxa6 {[%emt 0:00:26]} Qe7+ {[%emt 0:02:25]} 55. Qb7 {[%emt 0:00:10]} Qxb7+ {[%emt 0:00:37]} 56. Kxb7 {[%emt 0:00:30]} Ne4 {[%emt 0:00:00]} 57. Kc6 {[%emt 0:00:00]} Nc3 {[%emt 0:00:00]} 58. Ra3 {[%emt 0:00:08]} Kf5 {[%emt 0:00:02]} 59. Ra7 {[%emt 0:00:40]} Be5 {[%emt 0:00:06]} 60. Rh7 {[%emt 0:00:00]} h4 {[%emt 0:00:16]} 61. Kd7 {[%emt 0:00:21]} b4 {[%emt 0:00:09]} 62. Kc6 {[%emt 0:00:44]} b3 {[%emt 0:00:30]} 63. Rb7 {[%emt 0:00:30]} Ne2 {[%emt 0:00:00]} 0-1

[Event "Turkish Championship 2019"]
[Site "Antalya-Kemer"]
[Date "2019.11.30"]
[Round "8.3"]
[White "Cansun, Can Alp"]
[Black "Yuksel, Atilla Koksal"]
[Result "1-0"]
[ECO "B45"]
[WhiteElo "2203"]
[BlackElo "2250"]
[Annotator "NA"]
[PlyCount "59"]
[EventDate "2019.11.23"]
[EventType "tourn"]
[EventCountry "TUR"]
[SourceTitle "playchess.com"]
[Source "ChessBase"]
[SourceQuality "1"]
[TimeControl "40/5400+30:1800+30"]

1. e4 {[%emt 0:00:30]} c5 {[%emt 0:01:30]} 2. Nf3 {[%emt 0:00:00]} Nc6 {[%emt 0:00:30]} 3. d4 {[%emt 0:00:00]} cxd4 {[%emt 0:00:30]} 4. Nxd4 {[%emt 0:00:00]} Qb6 {[%emt 0:00:30]} 5. Nb3 {[%emt 0:00:00]} Nf6 {[%emt 0:00:30]} 6. Nc3 {[%emt 0:00:30]} e6 {[%emt 0:00:30]} 7. g3 {[%emt 0:01:30]} a6 {[%emt 0:03:30]} 8. Bg2 {[%emt 0:00:00]} d6 {[%emt 0:03:30]} 9. O-O {[%emt 0:00:00]} Be7 {[%emt 0:00:30]} 10. a4 {[%emt 0:03:30]} Na5 {[%emt 0:04:30]} 11. Kh1 {[%emt 0:06:30]} O-O {[%emt 0:12:30]} 12. f4 {[%emt 0:07:30]} Nc4 {[%emt 0:03:30]} 13. a5 {[%emt 0:02:30]} Qc7 {[%emt 0:00:30]} 14. g4 {[%emt 0:00:30]} Nd7 {[%emt 0:01:30]} 15. g5 {[%emt 0:04:30]} g6 {[%emt 0:11:30]} 16. f5 {[%emt 0:06:30]} Re8 {[%emt 0:01:30]} 17. fxe6 {[%emt 0:01:30]} fxe6 {[%emt 0:00:30]} 18. Nd5 {[%emt 0:02:30]} Qd8 {[%emt 0:02:30]} 19. Nd4 {[%emt 0:05:30]} Nf8 {[%emt 0:22:30]} 20. Nf6+ {[%emt 0:04:30]} Bxf6 {[%emt 0:00:30]} 21. gxf6 {[%emt 0:00:30]} Ne5 {[%emt 0:00:30]} 22. Nf3 {[%emt 0:07:30]} Nf7 {[%emt 0:01:30]} 23. Ng5 {[%emt 0:00:30]} Qc7 {[%emt 0:03:30]} 24. Nxf7 {[%emt 0:02:30]} Kxf7 {[%emt 0:00:30]} 25. Qd2 {[%emt 0:00:30]} Rd8 {[%emt 0:05:13]} 26. Qh6 {[%emt 0:00:30]} Rd7 {[%emt 0:00:22]} 27. Be3 {[%emt 0:12:30]} b5 {[%emt 0:06:18]} 28. axb6 {[%emt 0:00:30]} Qb7 {[%emt 0:00:30]} 29. e5 {[%emt 0:00:30]} d5 {[%emt 0:00:04]} 30. Bc5 {[%emt 0:00:00]} 1-0